Workbook

Sheet Solver_suboptimal
C1: List length | D1: List length | E1: List length | F1: List length | G1: List length | H1: List length | I1: List length | J1: List length | K1: List length | L1: List length | M1: List length
C2: 2183 | D2: 2120 | E2: 2027 | F2: 1670 | G2: 1656 | H2: 1460 | I2: 856 | J2: 0 | K2: 0 | L2: 0 | M2: 0
B4: Demand of lists | C4: 424 | D4: 8 | E4: 16 | F4: 288 | G4: 236 | H4: 16 | I4: 160 | J4: 0 | K4: 0 | L4: 0 | M4: 0 | R4: 424 | S4: 8 | T4: 16 | U4: 288 | V4: 236 | W4: 16 | X4: 160
B6: Solver result
B8: Target demand | C8: 0 | D8: 0 | E8: 0 | F8: 0 | G8: 0 | H8: 0 | I8: 0 | J8: 0 | K8: 0 | L8: 0 | M8: 0 | O8: =SUM(C8:M8) -> 0
B10: Object func | C10: =F12-SUMPRODUCT(C2:M2,C6:M6) -> 6000
B12: constr 3 | C12: =SUMPRODUCT(C2:M2,C6:M6) -> 0 | E12: =< | F12: 6000 | G12: Length of stock rod
C16: =C1 -> List length | D16: =D1 -> List length | E16: List length | F16: List length | G16: List length | H16: List length | I16: List length | J16: List length | K16: List length | L16: List length | M16: List length
B17: Solver result | C17: =C2 -> 2183 | D17: =D2 -> 2120 | E17: 2027 | F17: 1670 | G17: 1656 | H17: 1460 | I17: 856 | J17: 0 | K17: 0 | L17: 0 | M17: 0 | O17: Waste
B18: Rod nr 1 | C18: 0 | D18: 0 | E18: 1 | F18: 0 | G18: 1 | H18: 1 | I18: 1 | J18: 0 | K18: 0 | L18: 0 | M18: 0 | O18: 1
B19: Rod nr 2 | C19: 0 | D19: 0 | E19: 1 | F19: 0 | G19: 1 | H19: 1 | I19: 1 | J19: 0 | K19: 0 | L19: 0 | M19: 0 | O19: 1
B20: Rod nr 3 | C20: 0 | D20: 0 | E20: 1 | F20: 0 | G20: 1 | H20: 1 | I20: 1 | J20: 0 | K20: 0 | L20: 0 | M20: 0 | O20: 1
B21: Rod nr 4 | C21: 0 | D21: 0 | E21: 1 | F21: 0 | G21: 1 | H21: 1 | I21: 1 | J21: 0 | K21: 0 | L21: 0 | M21: 0 | O21: 1
B22: Rod nr 5 | C22: 0 | D22: 0 | E22: 1 | F22: 0 | G22: 1 | H22: 1 | I22: 1 | J22: 0 | K22: 0 | L22: 0 | M22: 0 | O22: 1
B23: Rod nr 6 | C23: 0 | D23: 0 | E23: 1 | F23: 0 | G23: 1 | H23: 1 | I23: 1 | J23: 0 | K23: 0 | L23: 0 | M23: 0 | O23: 1
B24: Rod nr 7 | C24: 0 | D24: 0 | E24: 1 | F24: 0 | G24: 1 | H24: 1 | I24: 1 | J24: 0 | K24: 0 | L24: 0 | M24: 0 | O24: 1
B25: Rod nr 8 | C25: 0 | D25: 0 | E25: 1 | F25: 0 | G25: 1 | H25: 1 | I25: 1 | J25: 0 | K25: 0 | L25: 0 | M25: 0 | O25: 1
B26: Rod nr 9 | C26: 0 | D26: 0 | E26: 1 | F26: 0 | G26: 1 | H26: 1 | I26: 1 | J26: 0 | K26: 0 | L26: 0 | M26: 0 | O26: 1
B27: Rod nr 10 | C27: 0 | D27: 0 | E27: 1 | F27: 0 | G27: 1 | H27: 1 | I27: 1 | J27: 0 | K27: 0 | L27: 0 | M27: 0 | O27: 1
B28: Rod nr 11 | C28: 0 | D28: 0 | E28: 1 | F28: 0 | G28: 1 | H28: 1 | I28: 1 | J28: 0 | K28: 0 | L28: 0 | M28: 0 | O28: 1
B29: Rod nr 12 | C29: 0 | D29: 0 | E29: 1 | F29: 0 | G29: 1 | H29: 1 | I29: 1 | J29: 0 | K29: 0 | L29: 0 | M29: 0 | O29: 1
B30: Rod nr 13 | C30: 0 | D30: 0 | E30: 1 | F30: 0 | G30: 1 | H30: 1 | I30: 1 | J30: 0 | K30: 0 | L30: 0 | M30: 0 | O30: 1
B31: Rod nr 14 | C31: 0 | D31: 0 | E31: 1 | F31: 0 | G31: 1 | H31: 1 | I31: 1 | J31: 0 | K31: 0 | L31: 0 | M31: 0 | O31: 1
B32: Rod nr 15 | C32: 0 | D32: 0 | E32: 1 | F32: 0 | G32: 1 | H32: 1 | I32: 1 | J32: 0 | K32: 0 | L32: 0 | M32: 0 | O32: 1
B33: Rod nr 16 | C33: 0 | D33: 0 | E33: 1 | F33: 0 | G33: 1 | H33: 1 | I33: 1 | J33: 0 | K33: 0 | L33: 0 | M33: 0 | O33: 1
B34: Rod nr 17 | C34: 0 | D34: 0 | E34: 0 | F34: 0 | G34: 0 | H34: 0 | I34: 7 | J34: 0 | K34: 0 | L34: 0 | M34: 0 | O34: 8
B35: Rod nr 18 | C35: 0 | D35: 0 | E35: 0 | F35: 0 | G35: 0 | H35: 0 | I35: 7 | J35: 0 | K35: 0 | L35: 0 | M35: 0 | O35: 8
B36: Rod nr 19 | C36: 0 | D36: 0 | E36: 0 | F36: 0 | G36: 0 | H36: 0 | I36: 7 | J36: 0 | K36: 0 | L36: 0 | M36: 0 | O36: 8
B37: Rod nr 20 | C37: 0 | D37: 0 | E37: 0 | F37: 0 | G37: 0 | H37: 0 | I37: 7 | J37: 0 | K37: 0 | L37: 0 | M37: 0 | O37: 8
B38: Rod nr 21 | C38: 0 | D38: 0 | E38: 0 | F38: 0 | G38: 0 | H38: 0 | I38: 7 | J38: 0 | K38: 0 | L38: 0 | M38: 0 | O38: 8
B39: Rod nr 22 | C39: 0 | D39: 0 | E39: 0 | F39: 0 | G39: 0 | H39: 0 | I39: 7 | J39: 0 | K39: 0 | L39: 0 | M39: 0 | O39: 8
B40: Rod nr 23 | C40: 0 | D40: 0 | E40: 0 | F40: 0 | G40: 0 | H40: 0 | I40: 7 | J40: 0 | K40: 0 | L40: 0 | M40: 0 | O40: 8
B41: Rod nr 24 | C41: 0 | D41: 0 | E41: 0 | F41: 0 | G41: 0 | H41: 0 | I41: 7 | J41: 0 | K41: 0 | L41: 0 | M41: 0 | O41: 8
B42: Rod nr 25 | C42: 0 | D42: 0 | E42: 0 | F42: 0 | G42: 0 | H42: 0 | I42: 7 | J42: 0 | K42: 0 | L42: 0 | M42: 0 | O42: 8
B43: Rod nr 26 | C43: 0 | D43: 0 | E43: 0 | F43: 0 | G43: 0 | H43: 0 | I43: 7 | J43: 0 | K43: 0 | L43: 0 | M43: 0 | O43: 8
B44: Rod nr 27 | C44: 0 | D44: 0 | E44: 0 | F44: 0 | G44: 0 | H44: 0 | I44: 7 | J44: 0 | K44: 0 | L44: 0 | M44: 0 | O44: 8
B45: Rod nr 28 | C45: 0 | D45: 0 | E45: 0 | F45: 0 | G45: 0 | H45: 0 | I45: 7 | J45: 0 | K45: 0 | L45: 0 | M45: 0 | O45: 8
B46: Rod nr 29 | C46: 0 | D46: 0 | E46: 0 | F46: 0 | G46: 0 | H46: 0 | I46: 7 | J46: 0 | K46: 0 | L46: 0 | M46: 0 | O46: 8
B47: Rod nr 30 | C47: 0 | D47: 0 | E47: 0 | F47: 0 | G47: 0 | H47: 0 | I47: 7 | J47: 0 | K47: 0 | L47: 0 | M47: 0 | O47: 8
B48: Rod nr 31 | C48: 0 | D48: 0 | E48: 0 | F48: 0 | G48: 0 | H48: 0 | I48: 7 | J48: 0 | K48: 0 | L48: 0 | M48: 0 | O48: 8
B49: Rod nr 32 | C49: 0 | D49: 0 | E49: 0 | F49: 0 | G49: 0 | H49: 0 | I49: 7 | J49: 0 | K49: 0 | L49: 0 | M49: 0 | O49: 8
B50: Rod nr 33 | C50: 0 | D50: 0 | E50: 0 | F50: 0 | G50: 0 | H50: 0 | I50: 7 | J50: 0 | K50: 0 | L50: 0 | M50: 0 | O50: 8
B51: Rod nr 34 | C51: 0 | D51: 0 | E51: 0 | F51: 0 | G51: 0 | H51: 0 | I51: 7 | J51: 0 | K51: 0 | L51: 0 | M51: 0 | O51: 8
B52: Rod nr 35 | C52: 0 | D52: 0 | E52: 0 | F52: 0 | G52: 0 | H52: 0 | I52: 7 | J52: 0 | K52: 0 | L52: 0 | M52: 0 | O52: 8
B53: Rod nr 36 | C53: 0 | D53: 0 | E53: 0 | F53: 0 | G53: 0 | H53: 0 | I53: 7 | J53: 0 | K53: 0 | L53: 0 | M53: 0 | O53: 8
B54: Rod nr 37 | C54: 1 | D54: 1 | E54: 0 | F54: 1 | G54: 0 | H54: 0 | I54: 0 | J54: 0 | K54: 0 | L54: 0 | M54: 0 | O54: 27
B55: Rod nr 38 | C55: 1 | D55: 1 | E55: 0 | F55: 1 | G55: 0 | H55: 0 | I55: 0 | J55: 0 | K55: 0 | L55: 0 | M55: 0 | O55: 27
B56: Rod nr 39 | C56: 1 | D56: 1 | E56: 0 | F56: 1 | G56: 0 | H56: 0 | I56: 0 | J56: 0 | K56: 0 | L56: 0 | M56: 0 | O56: 27
B57: Rod nr 40 | C57: 1 | D57: 1 | E57: 0 | F57: 1 | G57: 0 | H57: 0 | I57: 0 | J57: 0 | K57: 0 | L57: 0 | M57: 0 | O57: 27
B58: Rod nr 41 | C58: 1 | D58: 1 | E58: 0 | F58: 1 | G58: 0 | H58: 0 | I58: 0 | J58: 0 | K58: 0 | L58: 0 | M58: 0 | O58: 27
B59: Rod nr 42 | C59: 1 | D59: 1 | E59: 0 | F59: 1 | G59: 0 | H59: 0 | I59: 0 | J59: 0 | K59: 0 | L59: 0 | M59: 0 | O59: 27
B60: Rod nr 43 | C60: 1 | D60: 1 | E60: 0 | F60: 1 | G60: 0 | H60: 0 | I60: 0 | J60: 0 | K60: 0 | L60: 0 | M60: 0 | O60: 27
B61: Rod nr 44 | C61: 1 | D61: 1 | E61: 0 | F61: 1 | G61: 0 | H61: 0 | I61: 0 | J61: 0 | K61: 0 | L61: 0 | M61: 0 | O61: 27
B62: Rod nr 45 | C62: 0 | D62: 0 | E62: 0 | F62: 2 | G62: 0 | H62: 0 | I62: 3 | J62: 0 | K62: 0 | L62: 0 | M62: 0 | O62: 92
B63: Rod nr 46 | C63: 0 | D63: 0 | E63: 0 | F63: 3 | G63: 0 | H63: 0 | I63: 1 | J63: 0 | K63: 0 | L63: 0 | M63: 0 | O63: 134
B64: Rod nr 47 | C64: 1 | D64: 0 | E64: 0 | F64: 2 | G64: 0 | H64: 0 | I64: 0 | J64: 0 | K64: 0 | L64: 0 | M64: 0 | O64: 477
B65: Rod nr 48 | C65: 1 | D65: 0 | E65: 0 | F65: 2 | G65: 0 | H65: 0 | I65: 0 | J65: 0 | K65: 0 | L65: 0 | M65: 0 | O65: 477
B66: Rod nr 49 | C66: 1 | D66: 0 | E66: 0 | F66: 2 | G66: 0 | H66: 0 | I66: 0 | J66: 0 | K66: 0 | L66: 0 | M66: 0 | O66: 477
B67: Rod nr 50 | C67: 1 | D67: 0 | E67: 0 | F67: 2 | G67: 0 | H67: 0 | I67: 0 | J67: 0 | K67: 0 | L67: 0 | M67: 0 | O67: 477
B68: Rod nr 51 | C68: 1 | D68: 0 | E68: 0 | F68: 2 | G68: 0 | H68: 0 | I68: 0 | J68: 0 | K68: 0 | L68: 0 | M68: 0 | O68: 477
B69: Rod nr 52 | C69: 1 | D69: 0 | E69: 0 | F69: 2 | G69: 0 | H69: 0 | I69: 0 | J69: 0 | K69: 0 | L69: 0 | M69: 0 | O69: 477
B70: Rod nr 53 | C70: 1 | D70: 0 | E70: 0 | F70: 2 | G70: 0 | H70: 0 | I70: 0 | J70: 0 | K70: 0 | L70: 0 | M70: 0 | O70: 477
B71: Rod nr 54 | C71: 1 | D71: 0 | E71: 0 | F71: 2 | G71: 0 | H71: 0 | I71: 0 | J71: 0 | K71: 0 | L71: 0 | M71: 0 | O71: 477
B72: Rod nr 55 | C72: 1 | D72: 0 | E72: 0 | F72: 2 | G72: 0 | H72: 0 | I72: 0 | J72: 0 | K72: 0 | L72: 0 | M72: 0 | O72: 477
B73: Rod nr 56 | C73: 1 | D73: 0 | E73: 0 | F73: 2 | G73: 0 | H73: 0 | I73: 0 | J73: 0 | K73: 0 | L73: 0 | M73: 0 | O73: 477
B74: Rod nr 57 | C74: 1 | D74: 0 | E74: 0 | F74: 2 | G74: 0 | H74: 0 | I74: 0 | J74: 0 | K74: 0 | L74: 0 | M74: 0 | O74: 477
B75: Rod nr 58 | C75: 1 | D75: 0 | E75: 0 | F75: 2 | G75: 0 | H75: 0 | I75: 0 | J75: 0 | K75: 0 | L75: 0 | M75: 0 | O75: 477
B76: Rod nr 59 | C76: 1 | D76: 0 | E76: 0 | F76: 2 | G76: 0 | H76: 0 | I76: 0 | J76: 0 | K76: 0 | L76: 0 | M76: 0 | O76: 477
B77: Rod nr 60 | C77: 1 | D77: 0 | E77: 0 | F77: 2 | G77: 0 | H77: 0 | I77: 0 | J77: 0 | K77: 0 | L77: 0 | M77: 0 | O77: 477
B78: Rod nr 61 | C78: 1 | D78: 0 | E78: 0 | F78: 2 | G78: 0 | H78: 0 | I78: 0 | J78: 0 | K78: 0 | L78: 0 | M78: 0 | O78: 477
B79: Rod nr 62 | C79: 1 | D79: 0 | E79: 0 | F79: 2 | G79: 0 | H79: 0 | I79: 0 | J79: 0 | K79: 0 | L79: 0 | M79: 0 | O79: 477
B80: Rod nr 63 | C80: 1 | D80: 0 | E80: 0 | F80: 2 | G80: 0 | H80: 0 | I80: 0 | J80: 0 | K80: 0 | L80: 0 | M80: 0 | O80: 477
B81: Rod nr 64 | C81: 1 | D81: 0 | E81: 0 | F81: 2 | G81: 0 | H81: 0 | I81: 0 | J81: 0 | K81: 0 | L81: 0 | M81: 0 | O81: 477
B82: Rod nr 65 | C82: 1 | D82: 0 | E82: 0 | F82: 2 | G82: 0 | H82: 0 | I82: 0 | J82: 0 | K82: 0 | L82: 0 | M82: 0 | O82: 477
B83: Rod nr 66 | C83: 1 | D83: 0 | E83: 0 | F83: 2 | G83: 0 | H83: 0 | I83: 0 | J83: 0 | K83: 0 | L83: 0 | M83: 0 | O83: 477
B84: Rod nr 67 | C84: 1 | D84: 0 | E84: 0 | F84: 2 | G84: 0 | H84: 0 | I84: 0 | J84: 0 | K84: 0 | L84: 0 | M84: 0 | O84: 477
B85: Rod nr 68 | C85: 1 | D85: 0 | E85: 0 | F85: 2 | G85: 0 | H85: 0 | I85: 0 | J85: 0 | K85: 0 | L85: 0 | M85: 0 | O85: 477
B86: Rod nr 69 | C86: 1 | D86: 0 | E86: 0 | F86: 2 | G86: 0 | H86: 0 | I86: 0 | J86: 0 | K86: 0 | L86: 0 | M86: 0 | O86: 477
B87: Rod nr 70 | C87: 1 | D87: 0 | E87: 0 | F87: 2 | G87: 0 | H87: 0 | I87: 0 | J87: 0 | K87: 0 | L87: 0 | M87: 0 | O87: 477
B88: Rod nr 71 | C88: 1 | D88: 0 | E88: 0 | F88: 2 | G88: 0 | H88: 0 | I88: 0 | J88: 0 | K88: 0 | L88: 0 | M88: 0 | O88: 477
B89: Rod nr 72 | C89: 1 | D89: 0 | E89: 0 | F89: 2 | G89: 0 | H89: 0 | I89: 0 | J89: 0 | K89: 0 | L89: 0 | M89: 0 | O89: 477
B90: Rod nr 73 | C90: 1 | D90: 0 | E90: 0 | F90: 2 | G90: 0 | H90: 0 | I90: 0 | J90: 0 | K90: 0 | L90: 0 | M90: 0 | O90: 477
B91: Rod nr 74 | C91: 1 | D91: 0 | E91: 0 | F91: 2 | G91: 0 | H91: 0 | I91: 0 | J91: 0 | K91: 0 | L91: 0 | M91: 0 | O91: 477
B92: Rod nr 75 | C92: 1 | D92: 0 | E92: 0 | F92: 2 | G92: 0 | H92: 0 | I92: 0 | J92: 0 | K92: 0 | L92: 0 | M92: 0 | O92: 477
B93: Rod nr 76 | C93: 1 | D93: 0 | E93: 0 | F93: 2 | G93: 0 | H93: 0 | I93: 0 | J93: 0 | K93: 0 | L93: 0 | M93: 0 | O93: 477
B94: Rod nr 77 | C94: 1 | D94: 0 | E94: 0 | F94: 2 | G94: 0 | H94: 0 | I94: 0 | J94: 0 | K94: 0 | L94: 0 | M94: 0 | O94: 477
B95: Rod nr 78 | C95: 1 | D95: 0 | E95: 0 | F95: 2 | G95: 0 | H95: 0 | I95: 0 | J95: 0 | K95: 0 | L95: 0 | M95: 0 | O95: 477
B96: Rod nr 79 | C96: 1 | D96: 0 | E96: 0 | F96: 2 | G96: 0 | H96: 0 | I96: 0 | J96: 0 | K96: 0 | L96: 0 | M96: 0 | O96: 477
B97: Rod nr 80 | C97: 1 | D97: 0 | E97: 0 | F97: 2 | G97: 0 | H97: 0 | I97: 0 | J97: 0 | K97: 0 | L97: 0 | M97: 0 | O97: 477
B98: Rod nr 81 | C98: 1 | D98: 0 | E98: 0 | F98: 2 | G98: 0 | H98: 0 | I98: 0 | J98: 0 | K98: 0 | L98: 0 | M98: 0 | O98: 477
B99: Rod nr 82 | C99: 1 | D99: 0 | E99: 0 | F99: 2 | G99: 0 | H99: 0 | I99: 0 | J99: 0 | K99: 0 | L99: 0 | M99: 0 | O99: 477
B100: Rod nr 83 | C100: 1 | D100: 0 | E100: 0 | F100: 2 | G100: 0 | H100: 0 | I100: 0 | J100: 0 | K100: 0 | L100: 0 | M100: 0 | O100: 477
B101: Rod nr 84 | C101: 1 | D101: 0 | E101: 0 | F101: 2 | G101: 0 | H101: 0 | I101: 0 | J101: 0 | K101: 0 | L101: 0 | M101: 0 | O101: 477
B102: Rod nr 85 | C102: 1 | D102: 0 | E102: 0 | F102: 2 | G102: 0 | H102: 0 | I102: 0 | J102: 0 | K102: 0 | L102: 0 | M102: 0 | O102: 477
B103: Rod nr 86 | C103: 1 | D103: 0 | E103: 0 | F103: 2 | G103: 0 | H103: 0 | I103: 0 | J103: 0 | K103: 0 | L103: 0 | M103: 0 | O103: 477
B104: Rod nr 87 | C104: 1 | D104: 0 | E104: 0 | F104: 2 | G104: 0 | H104: 0 | I104: 0 | J104: 0 | K104: 0 | L104: 0 | M104: 0 | O104: 477
B105: Rod nr 88 | C105: 1 | D105: 0 | E105: 0 | F105: 2 | G105: 0 | H105: 0 | I105: 0 | J105: 0 | K105: 0 | L105: 0 | M105: 0 | O105: 477
B106: Rod nr 89 | C106: 1 | D106: 0 | E106: 0 | F106: 2 | G106: 0 | H106: 0 | I106: 0 | J106: 0 | K106: 0 | L106: 0 | M106: 0 | O106: 477
B107: Rod nr 90 | C107: 1 | D107: 0 | E107: 0 | F107: 2 | G107: 0 | H107: 0 | I107: 0 | J107: 0 | K107: 0 | L107: 0 | M107: 0 | O107: 477
B108: Rod nr 91 | C108: 1 | D108: 0 | E108: 0 | F108: 2 | G108: 0 | H108: 0 | I108: 0 | J108: 0 | K108: 0 | L108: 0 | M108: 0 | O108: 477
B109: Rod nr 92 | C109: 1 | D109: 0 | E109: 0 | F109: 2 | G109: 0 | H109: 0 | I109: 0 | J109: 0 | K109: 0 | L109: 0 | M109: 0 | O109: 477
B110: Rod nr 93 | C110: 1 | D110: 0 | E110: 0 | F110: 2 | G110: 0 | H110: 0 | I110: 0 | J110: 0 | K110: 0 | L110: 0 | M110: 0 | O110: 477
B111: Rod nr 94 | C111: 1 | D111: 0 | E111: 0 | F111: 2 | G111: 0 | H111: 0 | I111: 0 | J111: 0 | K111: 0 | L111: 0 | M111: 0 | O111: 477
B112: Rod nr 95 | C112: 1 | D112: 0 | E112: 0 | F112: 2 | G112: 0 | H112: 0 | I112: 0 | J112: 0 | K112: 0 | L112: 0 | M112: 0 | O112: 477
B113: Rod nr 96 | C113: 1 | D113: 0 | E113: 0 | F113: 2 | G113: 0 | H113: 0 | I113: 0 | J113: 0 | K113: 0 | L113: 0 | M113: 0 | O113: 477
B114: Rod nr 97 | C114: 1 | D114: 0 | E114: 0 | F114: 2 | G114: 0 | H114: 0 | I114: 0 | J114: 0 | K114: 0 | L114: 0 | M114: 0 | O114: 477
B115: Rod nr 98 | C115: 1 | D115: 0 | E115: 0 | F115: 2 | G115: 0 | H115: 0 | I115: 0 | J115: 0 | K115: 0 | L115: 0 | M115: 0 | O115: 477
B116: Rod nr 99 | C116: 1 | D116: 0 | E116: 0 | F116: 2 | G116: 0 | H116: 0 | I116: 0 | J116: 0 | K116: 0 | L116: 0 | M116: 0 | O116: 477
B117: Rod nr 100 | C117: 1 | D117: 0 | E117: 0 | F117: 2 | G117: 0 | H117: 0 | I117: 0 | J117: 0 | K117: 0 | L117: 0 | M117: 0 | O117: 477
B118: Rod nr 101 | C118: 1 | D118: 0 | E118: 0 | F118: 2 | G118: 0 | H118: 0 | I118: 0 | J118: 0 | K118: 0 | L118: 0 | M118: 0 | O118: 477
B119: Rod nr 102 | C119: 1 | D119: 0 | E119: 0 | F119: 2 | G119: 0 | H119: 0 | I119: 0 | J119: 0 | K119: 0 | L119: 0 | M119: 0 | O119: 477
B120: Rod nr 103 | C120: 1 | D120: 0 | E120: 0 | F120: 2 | G120: 0 | H120: 0 | I120: 0 | J120: 0 | K120: 0 | L120: 0 | M120: 0 | O120: 477
B121: Rod nr 104 | C121: 1 | D121: 0 | E121: 0 | F121: 2 | G121: 0 | H121: 0 | I121: 0 | J121: 0 | K121: 0 | L121: 0 | M121: 0 | O121: 477
B122: Rod nr 105 | C122: 1 | D122: 0 | E122: 0 | F122: 2 | G122: 0 | H122: 0 | I122: 0 | J122: 0 | K122: 0 | L122: 0 | M122: 0 | O122: 477
B123: Rod nr 106 | C123: 1 | D123: 0 | E123: 0 | F123: 2 | G123: 0 | H123: 0 | I123: 0 | J123: 0 | K123: 0 | L123: 0 | M123: 0 | O123: 477
B124: Rod nr 107 | C124: 1 | D124: 0 | E124: 0 | F124: 2 | G124: 0 | H124: 0 | I124: 0 | J124: 0 | K124: 0 | L124: 0 | M124: 0 | O124: 477
B125: Rod nr 108 | C125: 1 | D125: 0 | E125: 0 | F125: 2 | G125: 0 | H125: 0 | I125: 0 | J125: 0 | K125: 0 | L125: 0 | M125: 0 | O125: 477
B126: Rod nr 109 | C126: 1 | D126: 0 | E126: 0 | F126: 2 | G126: 0 | H126: 0 | I126: 0 | J126: 0 | K126: 0 | L126: 0 | M126: 0 | O126: 477
B127: Rod nr 110 | C127: 1 | D127: 0 | E127: 0 | F127: 2 | G127: 0 | H127: 0 | I127: 0 | J127: 0 | K127: 0 | L127: 0 | M127: 0 | O127: 477
B128: Rod nr 111 | C128: 1 | D128: 0 | E128: 0 | F128: 2 | G128: 0 | H128: 0 | I128: 0 | J128: 0 | K128: 0 | L128: 0 | M128: 0 | O128: 477
B129: Rod nr 112 | C129: 1 | D129: 0 | E129: 0 | F129: 2 | G129: 0 | H129: 0 | I129: 0 | J129: 0 | K129: 0 | L129: 0 | M129: 0 | O129: 477
B130: Rod nr 113 | C130: 1 | D130: 0 | E130: 0 | F130: 2 | G130: 0 | H130: 0 | I130: 0 | J130: 0 | K130: 0 | L130: 0 | M130: 0 | O130: 477
B131: Rod nr 114 | C131: 1 | D131: 0 | E131: 0 | F131: 2 | G131: 0 | H131: 0 | I131: 0 | J131: 0 | K131: 0 | L131: 0 | M131: 0 | O131: 477
B132: Rod nr 115 | C132: 1 | D132: 0 | E132: 0 | F132: 2 | G132: 0 | H132: 0 | I132: 0 | J132: 0 | K132: 0 | L132: 0 | M132: 0 | O132: 477
B133: Rod nr 116 | C133: 1 | D133: 0 | E133: 0 | F133: 2 | G133: 0 | H133: 0 | I133: 0 | J133: 0 | K133: 0 | L133: 0 | M133: 0 | O133: 477
B134: Rod nr 117 | C134: 1 | D134: 0 | E134: 0 | F134: 2 | G134: 0 | H134: 0 | I134: 0 | J134: 0 | K134: 0 | L134: 0 | M134: 0 | O134: 477
B135: Rod nr 118 | C135: 1 | D135: 0 | E135: 0 | F135: 2 | G135: 0 | H135: 0 | I135: 0 | J135: 0 | K135: 0 | L135: 0 | M135: 0 | O135: 477
B136: Rod nr 119 | C136: 1 | D136: 0 | E136: 0 | F136: 2 | G136: 0 | H136: 0 | I136: 0 | J136: 0 | K136: 0 | L136: 0 | M136: 0 | O136: 477
B137: Rod nr 120 | C137: 1 | D137: 0 | E137: 0 | F137: 2 | G137: 0 | H137: 0 | I137: 0 | J137: 0 | K137: 0 | L137: 0 | M137: 0 | O137: 477
B138: Rod nr 121 | C138: 1 | D138: 0 | E138: 0 | F138: 2 | G138: 0 | H138: 0 | I138: 0 | J138: 0 | K138: 0 | L138: 0 | M138: 0 | O138: 477
B139: Rod nr 122 | C139: 1 | D139: 0 | E139: 0 | F139: 2 | G139: 0 | H139: 0 | I139: 0 | J139: 0 | K139: 0 | L139: 0 | M139: 0 | O139: 477
B140: Rod nr 123 | C140: 1 | D140: 0 | E140: 0 | F140: 2 | G140: 0 | H140: 0 | I140: 0 | J140: 0 | K140: 0 | L140: 0 | M140: 0 | O140: 477
B141: Rod nr 124 | C141: 1 | D141: 0 | E141: 0 | F141: 2 | G141: 0 | H141: 0 | I141: 0 | J141: 0 | K141: 0 | L141: 0 | M141: 0 | O141: 477
B142: Rod nr 125 | C142: 1 | D142: 0 | E142: 0 | F142: 2 | G142: 0 | H142: 0 | I142: 0 | J142: 0 | K142: 0 | L142: 0 | M142: 0 | O142: 477
B143: Rod nr 126 | C143: 1 | D143: 0 | E143: 0 | F143: 2 | G143: 0 | H143: 0 | I143: 0 | J143: 0 | K143: 0 | L143: 0 | M143: 0 | O143: 477
B144: Rod nr 127 | C144: 1 | D144: 0 | E144: 0 | F144: 2 | G144: 0 | H144: 0 | I144: 0 | J144: 0 | K144: 0 | L144: 0 | M144: 0 | O144: 477
B145: Rod nr 128 | C145: 1 | D145: 0 | E145: 0 | F145: 2 | G145: 0 | H145: 0 | I145: 0 | J145: 0 | K145: 0 | L145: 0 | M145: 0 | O145: 477
B146: Rod nr 129 | C146: 1 | D146: 0 | E146: 0 | F146: 2 | G146: 0 | H146: 0 | I146: 0 | J146: 0 | K146: 0 | L146: 0 | M146: 0 | O146: 477
B147: Rod nr 130 | C147: 1 | D147: 0 | E147: 0 | F147: 2 | G147: 0 | H147: 0 | I147: 0 | J147: 0 | K147: 0 | L147: 0 | M147: 0 | O147: 477
B148: Rod nr 131 | C148: 1 | D148: 0 | E148: 0 | F148: 2 | G148: 0 | H148: 0 | I148: 0 | J148: 0 | K148: 0 | L148: 0 | M148: 0 | O148: 477
B149: Rod nr 132 | C149: 1 | D149: 0 | E149: 0 | F149: 2 | G149: 0 | H149: 0 | I149: 0 | J149: 0 | K149: 0 | L149: 0 | M149: 0 | O149: 477
B150: Rod nr 133 | C150: 1 | D150: 0 | E150: 0 | F150: 2 | G150: 0 | H150: 0 | I150: 0 | J150: 0 | K150: 0 | L150: 0 | M150: 0 | O150: 477
B151: Rod nr 134 | C151: 1 | D151: 0 | E151: 0 | F151: 2 | G151: 0 | H151: 0 | I151: 0 | J151: 0 | K151: 0 | L151: 0 | M151: 0 | O151: 477
B152: Rod nr 135 | C152: 1 | D152: 0 | E152: 0 | F152: 2 | G152: 0 | H152: 0 | I152: 0 | J152: 0 | K152: 0 | L152: 0 | M152: 0 | O152: 477
B153: Rod nr 136 | C153: 1 | D153: 0 | E153: 0 | F153: 2 | G153: 0 | H153: 0 | I153: 0 | J153: 0 | K153: 0 | L153: 0 | M153: 0 | O153: 477
B154: Rod nr 137 | C154: 1 | D154: 0 | E154: 0 | F154: 2 | G154: 0 | H154: 0 | I154: 0 | J154: 0 | K154: 0 | L154: 0 | M154: 0 | O154: 477
B155: Rod nr 138 | C155: 1 | D155: 0 | E155: 0 | F155: 2 | G155: 0 | H155: 0 | I155: 0 | J155: 0 | K155: 0 | L155: 0 | M155: 0 | O155: 477
B156: Rod nr 139 | C156: 1 | D156: 0 | E156: 0 | F156: 2 | G156: 0 | H156: 0 | I156: 0 | J156: 0 | K156: 0 | L156: 0 | M156: 0 | O156: 477
B157: Rod nr 140 | C157: 1 | D157: 0 | E157: 0 | F157: 2 | G157: 0 | H157: 0 | I157: 0 | J157: 0 | K157: 0 | L157: 0 | M157: 0 | O157: 477
B158: Rod nr 141 | C158: 1 | D158: 0 | E158: 0 | F158: 2 | G158: 0 | H158: 0 | I158: 0 | J158: 0 | K158: 0 | L158: 0 | M158: 0 | O158: 477
B159: Rod nr 142 | C159: 1 | D159: 0 | E159: 0 | F159: 2 | G159: 0 | H159: 0 | I159: 0 | J159: 0 | K159: 0 | L159: 0 | M159: 0 | O159: 477
B160: Rod nr 143 | C160: 1 | D160: 0 | E160: 0 | F160: 2 | G160: 0 | H160: 0 | I160: 0 | J160: 0 | K160: 0 | L160: 0 | M160: 0 | O160: 477
B161: Rod nr 144 | C161: 1 | D161: 0 | E161: 0 | F161: 2 | G161: 0 | H161: 0 | I161: 0 | J161: 0 | K161: 0 | L161: 0 | M161: 0 | O161: 477
B162: Rod nr 145 | C162: 1 | D162: 0 | E162: 0 | F162: 2 | G162: 0 | H162: 0 | I162: 0 | J162: 0 | K162: 0 | L162: 0 | M162: 0 | O162: 477
B163: Rod nr 146 | C163: 1 | D163: 0 | E163: 0 | F163: 2 | G163: 0 | H163: 0 | I163: 0 | J163: 0 | K163: 0 | L163: 0 | M163: 0 | O163: 477
B164: Rod nr 147 | C164: 1 | D164: 0 | E164: 0 | F164: 2 | G164: 0 | H164: 0 | I164: 0 | J164: 0 | K164: 0 | L164: 0 | M164: 0 | O164: 477
B165: Rod nr 148 | C165: 1 | D165: 0 | E165: 0 | F165: 2 | G165: 0 | H165: 0 | I165: 0 | J165: 0 | K165: 0 | L165: 0 | M165: 0 | O165: 477
B166: Rod nr 149 | C166: 1 | D166: 0 | E166: 0 | F166: 2 | G166: 0 | H166: 0 | I166: 0 | J166: 0 | K166: 0 | L166: 0 | M166: 0 | O166: 477
B167: Rod nr 150 | C167: 1 | D167: 0 | E167: 0 | F167: 2 | G167: 0 | H167: 0 | I167: 0 | J167: 0 | K167: 0 | L167: 0 | M167: 0 | O167: 477
B168: Rod nr 151 | C168: 1 | D168: 0 | E168: 0 | F168: 2 | G168: 0 | H168: 0 | I168: 0 | J168: 0 | K168: 0 | L168: 0 | M168: 0 | O168: 477
B169: Rod nr 152 | C169: 1 | D169: 0 | E169: 0 | F169: 2 | G169: 0 | H169: 0 | I169: 0 | J169: 0 | K169: 0 | L169: 0 | M169: 0 | O169: 477
B170: Rod nr 153 | C170: 1 | D170: 0 | E170: 0 | F170: 2 | G170: 0 | H170: 0 | I170: 0 | J170: 0 | K170: 0 | L170: 0 | M170: 0 | O170: 477
B171: Rod nr 154 | C171: 1 | D171: 0 | E171: 0 | F171: 2 | G171: 0 | H171: 0 | I171: 0 | J171: 0 | K171: 0 | L171: 0 | M171: 0 | O171: 477
B172: Rod nr 155 | C172: 1 | D172: 0 | E172: 0 | F172: 2 | G172: 0 | H172: 0 | I172: 0 | J172: 0 | K172: 0 | L172: 0 | M172: 0 | O172: 477
B173: Rod nr 156 | C173: 1 | D173: 0 | E173: 0 | F173: 2 | G173: 0 | H173: 0 | I173: 0 | J173: 0 | K173: 0 | L173: 0 | M173: 0 | O173: 477
B174: Rod nr 157 | C174: 1 | D174: 0 | E174: 0 | F174: 2 | G174: 0 | H174: 0 | I174: 0 | J174: 0 | K174: 0 | L174: 0 | M174: 0 | O174: 477
B175: Rod nr 158 | C175: 1 | D175: 0 | E175: 0 | F175: 2 | G175: 0 | H175: 0 | I175: 0 | J175: 0 | K175: 0 | L175: 0 | M175: 0 | O175: 477
B176: Rod nr 159 | C176: 1 | D176: 0 | E176: 0 | F176: 2 | G176: 0 | H176: 0 | I176: 0 | J176: 0 | K176: 0 | L176: 0 | M176: 0 | O176: 477
B177: Rod nr 160 | C177: 1 | D177: 0 | E177: 0 | F177: 2 | G177: 0 | H177: 0 | I177: 0 | J177: 0 | K177: 0 | L177: 0 | M177: 0 | O177: 477
B178: Rod nr 161 | C178: 1 | D178: 0 | E178: 0 | F178: 2 | G178: 0 | H178: 0 | I178: 0 | J178: 0 | K178: 0 | L178: 0 | M178: 0 | O178: 477
B179: Rod nr 162 | C179: 1 | D179: 0 | E179: 0 | F179: 2 | G179: 0 | H179: 0 | I179: 0 | J179: 0 | K179: 0 | L179: 0 | M179: 0 | O179: 477
B180: Rod nr 163 | C180: 1 | D180: 0 | E180: 0 | F180: 2 | G180: 0 | H180: 0 | I180: 0 | J180: 0 | K180: 0 | L180: 0 | M180: 0 | O180: 477
B181: Rod nr 164 | C181: 1 | D181: 0 | E181: 0 | F181: 2 | G181: 0 | H181: 0 | I181: 0 | J181: 0 | K181: 0 | L181: 0 | M181: 0 | O181: 477
B182: Rod nr 165 | C182: 1 | D182: 0 | E182: 0 | F182: 2 | G182: 0 | H182: 0 | I182: 0 | J182: 0 | K182: 0 | L182: 0 | M182: 0 | O182: 477
B183: Rod nr 166 | C183: 1 | D183: 0 | E183: 0 | F183: 2 | G183: 0 | H183: 0 | I183: 0 | J183: 0 | K183: 0 | L183: 0 | M183: 0 | O183: 477
B184: Rod nr 167 | C184: 1 | D184: 0 | E184: 0 | F184: 2 | G184: 0 | H184: 0 | I184: 0 | J184: 0 | K184: 0 | L184: 0 | M184: 0 | O184: 477
B185: Rod nr 168 | C185: 1 | D185: 0 | E185: 0 | F185: 2 | G185: 0 | H185: 0 | I185: 0 | J185: 0 | K185: 0 | L185: 0 | M185: 0 | O185: 477
B186: Rod nr 169 | C186: 1 | D186: 0 | E186: 0 | F186: 2 | G186: 0 | H186: 0 | I186: 0 | J186: 0 | K186: 0 | L186: 0 | M186: 0 | O186: 477
B187: Rod nr 170 | C187: 1 | D187: 0 | E187: 0 | F187: 2 | G187: 0 | H187: 0 | I187: 0 | J187: 0 | K187: 0 | L187: 0 | M187: 0 | O187: 477
B188: Rod nr 171 | C188: 1 | D188: 0 | E188: 0 | F188: 2 | G188: 0 | H188: 0 | I188: 0 | J188: 0 | K188: 0 | L188: 0 | M188: 0 | O188: 477
B189: Rod nr 172 | C189: 1 | D189: 0 | E189: 0 | F189: 2 | G189: 0 | H189: 0 | I189: 0 | J189: 0 | K189: 0 | L189: 0 | M189: 0 | O189: 477
B190: Rod nr 173 | C190: 1 | D190: 0 | E190: 0 | F190: 2 | G190: 0 | H190: 0 | I190: 0 | J190: 0 | K190: 0 | L190: 0 | M190: 0 | O190: 477
B191: Rod nr 174 | C191: 1 | D191: 0 | E191: 0 | F191: 2 | G191: 0 | H191: 0 | I191: 0 | J191: 0 | K191: 0 | L191: 0 | M191: 0 | O191: 477
B192: Rod nr 175 | C192: 1 | D192: 0 | E192: 0 | F192: 2 | G192: 0 | H192: 0 | I192: 0 | J192: 0 | K192: 0 | L192: 0 | M192: 0 | O192: 477
B193: Rod nr 176 | C193: 1 | D193: 0 | E193: 0 | F193: 2 | G193: 0 | H193: 0 | I193: 0 | J193: 0 | K193: 0 | L193: 0 | M193: 0 | O193: 477
B194: Rod nr 177 | C194: 1 | D194: 0 | E194: 0 | F194: 2 | G194: 0 | H194: 0 | I194: 0 | J194: 0 | K194: 0 | L194: 0 | M194: 0 | O194: 477
B195: Rod nr 178 | C195: 1 | D195: 0 | E195: 0 | F195: 2 | G195: 0 | H195: 0 | I195: 0 | J195: 0 | K195: 0 | L195: 0 | M195: 0 | O195: 477
B196: Rod nr 179 | C196: 1 | D196: 0 | E196: 0 | F196: 2 | G196: 0 | H196: 0 | I196: 0 | J196: 0 | K196: 0 | L196: 0 | M196: 0 | O196: 477
B197: Rod nr 180 | C197: 1 | D197: 0 | E197: 0 | F197: 2 | G197: 0 | H197: 0 | I197: 0 | J197: 0 | K197: 0 | L197: 0 | M197: 0 | O197: 477
B198: Rod nr 181 | C198: 1 | D198: 0 | E198: 0 | F198: 2 | G198: 0 | H198: 0 | I198: 0 | J198: 0 | K198: 0 | L198: 0 | M198: 0 | O198: 477
B199: Rod nr 182 | C199: 1 | D199: 0 | E199: 0 | F199: 2 | G199: 0 | H199: 0 | I199: 0 | J199: 0 | K199: 0 | L199: 0 | M199: 0 | O199: 477
B200: Rod nr 183 | C200: 1 | D200: 0 | E200: 0 | F200: 2 | G200: 0 | H200: 0 | I200: 0 | J200: 0 | K200: 0 | L200: 0 | M200: 0 | O200: 477
B201: Rod nr 184 | C201: 1 | D201: 0 | E201: 0 | F201: 1 | G201: 1 | H201: 0 | I201: 0 | J201: 0 | K201: 0 | L201: 0 | M201: 0 | O201: 491
B202: Rod nr 185 | C202: 1 | D202: 0 | E202: 0 | F202: 0 | G202: 2 | H202: 0 | I202: 0 | J202: 0 | K202: 0 | L202: 0 | M202: 0 | O202: 505
B203: Rod nr 186 | C203: 1 | D203: 0 | E203: 0 | F203: 0 | G203: 2 | H203: 0 | I203: 0 | J203: 0 | K203: 0 | L203: 0 | M203: 0 | O203: 505
B204: Rod nr 187 | C204: 1 | D204: 0 | E204: 0 | F204: 0 | G204: 2 | H204: 0 | I204: 0 | J204: 0 | K204: 0 | L204: 0 | M204: 0 | O204: 505
B205: Rod nr 188 | C205: 1 | D205: 0 | E205: 0 | F205: 0 | G205: 2 | H205: 0 | I205: 0 | J205: 0 | K205: 0 | L205: 0 | M205: 0 | O205: 505
B206: Rod nr 189 | C206: 1 | D206: 0 | E206: 0 | F206: 0 | G206: 2 | H206: 0 | I206: 0 | J206: 0 | K206: 0 | L206: 0 | M206: 0 | O206: 505
B207: Rod nr 190 | C207: 1 | D207: 0 | E207: 0 | F207: 0 | G207: 2 | H207: 0 | I207: 0 | J207: 0 | K207: 0 | L207: 0 | M207: 0 | O207: 505
B208: Rod nr 191 | C208: 1 | D208: 0 | E208: 0 | F208: 0 | G208: 2 | H208: 0 | I208: 0 | J208: 0 | K208: 0 | L208: 0 | M208: 0 | O208: 505
... 188 more rows

Sheet All_in_one_go
D2: List length | E2: List length | F2: List length | G2: List length | H2: List length | I2: List length | J2: List length | K2: Waste | L2: Number | M2: Totale
B3: 6000 | D3: 2183 | E3: 2120 | F3: 2027 | G3: 1670 | H3: 1656 | I3: 1460 | J3: 856 | K3: pr rod | L3: of Rods | M3: wast
C4: Cut 1 | D4: =2*L4 -> 32 | I4: =1*L4 -> 16 | K4: =IF(L4=0,0,$B$3-2*$D$3-1*$I$3) -> 174 | L4: 16 | M4: =L4*K4 -> 2784
C5: Cut 2 | D5: =2*L5 -> 172 | J5: =1*L5 -> 86 | K5: =IF(L5=0,0,$B$3-2*$D$3-1*$J$3) -> 778 | L5: 86 | M5: =L5*K5 -> 66908
C6: Cut 3 | D6: =1*L6 -> 8 | E6: =1*L6 -> 8 | G6: =1*L6 -> 8 | K6: =IF(L6=0,0,$B$3-$D$3-$E$3-$G$3) -> 27 | L6: 8 | M6: =L6*K6 -> 216
C7: Cut 4 | D7: 14 | F7: =1*L7 -> 14 | G7: =1*L7 -> 14 | K7: =IF(L7=0,0,$B$3-$D$3-$F$3-$G$3) -> 120 | L7: 14 | M7: =L7*K7 -> 1680
C8: Cut 5 | D8: 0 | G8: =2*L8 -> 0 | K8: =IF(L8=0,0,$B$3-$D$3-$G$3*2) -> 0 | L8: 0 | M8: 0
C9: Cut 6 | D9: 198 | G9: =1*L9 -> 198 | H9: =1*L9 -> 198 | K9: =IF(L9=0,0,$B$3-$D$3-$G$3-$H$3) -> 491 | L9: 198 | M9: 97218
C10: Cut 7 | D10: 0 | G10: =1*L10 -> 0 | I10: =1*L10 -> 0 | K10: =IF(L10=0,0,$B$3-$D$3-$G$3-$I$3) -> 0 | L10: 0 | M10: 0
C11: Cut 8 | D11: 0 | G11: =1*L11 -> 0 | J11: =2*L11 -> 0 | K11: =IF(L11=0,0,$B$3-$D$3-$G$3-$J$3*2) -> 0 | L11: 0 | M11: 0
C12: Cut 9 | D12: 0 | H12: =2*L12 -> 0 | K12: =IF(L12=0,0,$B$3-$D$3-$H$3*2) -> 0 | L12: 0 | M12: 0
C13: Cut 10 | D13: 0 | H13: =1*L13 -> 0 | I13: =1*L13 -> 0 | K13: =IF(L13=0,0,$B$3-$D$3-$H$3-$I$3) -> 0 | L13: 0 | M13: 0
C14: Cut 11 | D14: 0 | I14: =2*L14 -> 0 | J14: =1*L14 -> 0 | K14: =IF(L14=0,0,$B$3-$D$3-$I$3*2-J3) -> 0 | L14: 0 | M14: 0
C15: Cut 12 | D15: 0 | I15: =1*L15 -> 0 | J15: =2*L15 -> 0 | K15: =IF(L15=0,0,$B$3-$D$3-$I$3-$J$3*2) -> 0 | L15: 0 | M15: 0
C16: Cut 13 | D16: 0 | J16: =4*L16 -> 0 | K16: =IF(L16=0,0,$B$3-$D$3-$J$3*4) -> 0 | L16: 0 | M16: 0
C17: Cut 14 | E17: =2*L17 -> 0 | G17: =1*L17 -> 0 | K17: =IF(L17=0,0,$B$3-$E$3*2-$G$3) -> 0 | L17: 0 | M17: 0
C18: Cut 15 | E18: =2*L18 -> 0 | H18: =1*L18 -> 0 | K18: =IF(L18=0,0,$B$3-$E$3*2-$H$3) -> 0 | L18: 0 | M18: 0
C19: Cut 16 | E19: =2*L19 -> 0 | I19: =1*L19 -> 0 | K19: =IF(L19=0,0,$B$3-$E$3*2-$I$3) -> 0 | L19: 0 | M19: 0
C20: Cut 17 | E20: =2*L20 -> 0 | J20: =2*L20 -> 0 | K20: =IF(L20=0,0,$B$3-$E$3*2-$J$3*2) -> 0 | L20: 0 | M20: 0
C21: Cut 18 | E21: =1*L21 -> 0 | F21: =1*L21 -> 0 | G21: =1*L21 -> 0 | K21: =IF(L21=0,0,$B$3-$E$3-$F$3-$G$3) -> 0 | L21: 0 | M21: 0
C22: Cut 19 | E22: 0 | G22: =2*L22 -> 0 | K22: =IF(L22=0,0,$B$3-$E$3-$G$3*2) -> 0 | L22: 0 | M22: 0
C23: Cut 20 | E23: 0 | G23: =1*L23 -> 0 | H23: =1*L23 -> 0 | K23: =IF(L23=0,0,$B$3-$E$3-$G$3-$H$3) -> 0 | L23: 0 | M23: 0
C24: Cut 21 | E24: 0 | G24: =1*L24 -> 0 | I24: =1*L24 -> 0 | K24: =IF(L24=0,0,$B$3-$E$3-$G$3-$I$3) -> 0 | L24: 0 | M24: 0
C25: Cut 22 | E25: 0 | G25: =1*L25 -> 0 | J25: =2*L25 -> 0 | K25: =IF(L25=0,0,$B$3-$E$3-$G$3-$J$3*2) -> 0 | L25: 0 | M25: 0
C26: Cut 23 | E26: 0 | H26: =1*L26 -> 0 | J26: =2*L26 -> 0 | K26: =IF(L26=0,0,$B$3-$E$3-$H$3-$J$3*2) -> 0 | L26: 0 | M26: 0
C27: Cut 24 | E27: 0 | I27: =2*L27 -> 0 | J27: =1*L27 -> 0 | K27: =IF(L27=0,0,$B$3-$E$3-$I$3*2-$J$3) -> 0 | L27: 0 | M27: 0
C28: Cut 25 | E28: 0 | I28: =1*L28 -> 0 | J28: =2*L28 -> 0 | K28: =IF(L28=0,0,$B$3-$E$3-$I$3-$J$3*2) -> 0 | L28: 0 | M28: 0
C29: Cut 26 | E29: 0 | J29: =4*L29 -> 0 | K29: =IF(L29=0,0,$B$3-$E$3-$J$3*4) -> 0 | L29: 0 | M29: 0
C30: Cut 27 | F30: =2*L30 -> 0 | G30: =1*L30 -> 0 | K30: =IF(L30=0,0,$B$3-$F$3*2-$G$3) -> 0 | L30: 0 | M30: 0
C31: Cut 28 | F31: =1*L31 -> 0 | G31: =2*L31 -> 0 | K31: =IF(L31=0,0,$B$3-$F$3-$G$3*2) -> 0 | L31: 0 | M31: 0
C32: Cut 29 | F32: 1 | G32: =1*L32 -> 1 | K32: =IF(L32=0,0,$B$3-$F$3-$G$3-$H$3) -> 647 | L32: 1 | M32: 647
C33: Cut 30 | F33: 1 | H33: =2*L33 -> 2 | K33: =IF(L33=0,0,$B$3-$F$3-$H$3*2) -> 661 | L33: 1 | M33: 661
C34: Cut 31 | F34: 0 | H34: =1*L34 -> 0 | I34: =1*L34 -> 0 | J34: =1*M34 -> 0 | K34: =IF(L34=0,0,$B$3-$F$3-$H$3-$I$3-$J$3) -> 0 | L34: 0 | M34: 0
C35: Cut 32 | F35: 0 | I35: =2*L35 -> 0 | J35: =1*L35 -> 0 | K35: =IF(L35=0,0,$B$3-$F$3-$I$3*2-$J$3) -> 0 | L35: 0 | M35: 0
C36: Cut 33 | F36: 0 | I36: =1*L36 -> 0 | J36: =2*L36 -> 0 | K36: =IF(L36=0,0,$B$3-$F$3-$I$3-$J$3*2) -> 0 | L36: 0 | M36: 0
C37: Cut 34 | F37: 0 | J37: =4*L37 -> 0 | K37: =IF(L37=0,0,$B$3-$F$3-$J$3*4) -> 0 | L37: 0 | M37: 0
C38: Cut 35 | G38: =3*L38 -> 66 | J38: =1*L38 -> 22 | K38: =IF(L38=0,0,$B$3-$G$3*3-$J$3) -> 134 | L38: 22 | M38: 2948
C39: Cut 36 | G39: =2*L39 -> 0 | H39: =1*L39 -> 0 | J39: =1*L39 -> 0 | K39: =IF(L39=0,0,$B$3-$G$3*2-$H$3-$J$3) -> 0 | L39: 0 | M39: 0
C40: Cut 37 | G40: =2*L40 -> 0 | I40: =1*L40 -> 0 | J40: =1*L40 -> 0 | K40: =IF(L40=0,0,$B$3-$G$3*2-$I$3-$J$3) -> 0 | L40: 0 | M40: 0
C41: Cut 38 | G41: =2*L41 -> 0 | J41: =3*L41 -> 0 | K41: =IF(L41=0,0,$B$3-$G$3*2-$J$3*3) -> 0 | L41: 0 | M41: 0
C42: Cut 39 | G42: =1*L42 -> 1 | H42: =2*L42 -> 2 | J42: =1*L42 -> 1 | K42: =IF(L42=0,0,$B$3-$G$3-$H$3*2-$J$3) -> 162 | L42: 1 | M42: 162
C43: Cut 40 | G43: =1*L43 -> 0 | H43: =1*L43 -> 0 | I43: =1*L43 -> 0 | J43: =1*L43 -> 0 | K43: =IF(L43=0,0,$B$3-$G$3-$H$3-$I$3-$J$3) -> 0 | L43: 0 | M43: 0
C44: Cut 41 | H44: =3*L44 -> 0 | J44: =1*L44 -> 0 | K44: =IF(L44=0,0,$B$3-$H$3*3-$J$3) -> 0 | L44: 0 | M44: 0
C45: Cut 42 | H45: =2*L45 -> 0 | I45: =1*L45 -> 0 | J45: =1*L45 -> 0 | K45: =IF(L45=0,0,$B$3-$H$3*2-$I$3-$J$3) -> 0 | L45: 0 | M45: 0
C46: Cut 43 | H46: =2*L46 -> 34 | J46: =3*L46 -> 51 | K46: =IF(L46=0,0,$B$3-$H$3*2-$J$3*3) -> 120 | L46: 17 | M46: 2040
C47: Cut 44 | H47: =1*L47 -> 0 | I47: =2*L47 -> 0 | J47: =1*L47 -> 0 | K47: =IF(L47=0,0,$B$3-$H$3-$I$3*2-$J$3) -> 0 | L47: 0 | M47: 0
C48: Cut 45 | H48: =1*L48 -> 0 | I48: =1*L48 -> 0 | J48: =3*L48 -> 0 | K48: =IF(L48=0,0,$B$3-$H$3-$I$3-$J$3*3) -> 0 | L48: 0 | M48: 0
C49: Cut 46 | H49: =1*L49 -> 0 | J49: =5*L49 -> 0 | K49: =IF(L49=0,0,$B$3-$H$3-$J$3*5) -> 0 | L49: 0 | M49: 0
C50: Cut 47 | I50: =4*L50 -> 0 | K50: =IF(L50=0,0,$B$3-$I$3*4-$J$3*0) -> 0 | L50: 0 | M50: 0
C51: Cut 48 | I51: =3*L51 -> 0 | J51: =1*L51 -> 0 | K51: =IF(L51=0,0,$B$3-$I$3*3-$J$3) -> 0 | L51: 0 | M51: 0
C52: Cut 49 | I52: =2*L52 -> 0 | J52: =3*L52 -> 0 | K52: =IF(L52=0,0,$B$3-$I$3*2-$J$3*3) -> 0 | L52: 0 | M52: =L52*K52 -> 0
C53: Cut 50 | I53: =1*L53 -> 0 | J53: =5*L53 -> 0 | K53: =IF(L53=0,0,$B$3-$I$3-$J$3*5) -> 0 | L53: 0 | M53: =L53*K53 -> 0
C54: Cut 51 | J54: =7*L54 -> 0 | K54: =IF(L54=0,0,$B$3-$J$3*7) -> 0 | L54: 0 | M54: 0
B55: Solver total | D55: =SUM(D4:D54) -> 424 | E55: =SUM(E4:E54) -> 8 | F55: 16 | G55: 288 | H55: 236 | I55: 16 | J55: 160 | K55: 3314 | L55: 364 | M55: 175264
B57: Demand | D57: 424 | E57: 8 | F57: 16 | G57: 288 | H57: 236 | I57: 16 | J57: 160
B59: Excess | D59: =D55-D57 -> 0 | E59: =E55-E57 -> 0 | F59: 0 | G59: 0 | H59: 0 | I59: 0 | J59: 0
B61: Total Wastage | D61: =M55 -> 175264

Sheet Macro_walk_through
B3: Option Explicit | J3: This tells Excel all variables should be defined
B5: Sub SolverLoop() | J5: Macros start with the Sub command, then text and parentheses
B6: Dim i As Integer | J6: Dim i, declare i as an integer
B7: Dim cell As Range | J7: Declare cell as a range
B9: i = Range("B" & Rows.Count).End(xlUp).Row | J9: Count the rows in the B column going from bottom of spreadsheet to first row with a value or text or a blank signs and i will be the row number of this cell.
B11: If i <= 17 Then | J11: If i <= 17 tells macro what to do if this condition exists
J12: as there is no command macro does nothing.
B13: Else | J13: Else tells macro there is a command coming next.
B15: Range("B18:P" & i).Clear | J15: Macro is told to clear range B8:P & i
B17: End If | J17: End If command must always follows after an If command to mark the end of it.
B19: Range("C4:M4").Copy | J19: Copy C4:M4
B21: Range("C8").PasteSpecial xlPasteValues | J21: To C8 and only the values from range C4:M4. This is the number of all lists that should be made in order to meet the specified demand
B23: Application.CutCopyMode = False | J23: This will stop the "marching ants" from the range macro copied from.
B25: Range("B17") = "Solver result" | J25: Write text "Solver result" to cell B17
B27: Range("O17") = "Waste" | J27: Write text "Waste" to cell O17
B29: i = 1 | J29: Whatever i was before it no shall be 1
B31: Application.ScreenUpdating = False | J31: Freeze screen so there is no flickering,
B33: Do Until Range("O8") = 0 | J33: This is the start of a Loop command add repeat the loop until cell O8 is 0. At the start the cell value of O8 is 1148 i.e. summing of all lists that should be made.
B35: SolverReset | J35: As solver is run in a loop it's a good idea to clear solver between each run.
B36: SolverOk SetCell:="$C$10", MaxMinVal:=2, ByChange:="$C$6:$M$6", Engine:=2 | J36: Solver is told target cell C10 shall be set to minimum by changing cells in range C6:M6 and use the simplex lp engine.
B37: SolverAdd CellRef:="$C$6:$M$6", Relation:=4, FormulaText:="integer""" | J37: The cells in C6:M6 shall be integers.
B38: SolverAdd CellRef:="$C$6:$M$6", Relation:=1, FormulaText:="$C$8:$M$8" | J38: cells in range C6:M6 should be equal to or less than cells in range C8:M8
B39: SolverAdd CellRef:="$C$12", Relation:=1, FormulaText:="$F$12" | J39: cell C12 should be equal to or less than cell F12
B40: SolverSolve UserFinish:=True | J40: Don't stop and show the solver result window keep on going
B42: Range("C10").Copy | J42: Copy result from C10 (waste)
B44: Range("O" & Rows.Count).End(xlUp).Offset(1, 0).PasteSpecial xlPasteValues | J44: and find the first cell in column O with value (O17) and paste the C10 value one row below that. This is the offset command. The first value is the row offset, the second is the column offset.
B46: Range("B" & Rows.Count).End(xlUp).Offset(1, 0) = "Rod nr" & " " & i | J46: Then macro writes text in the B column "Rod nr" and i value starting as 1
B48: Range("C6:M6").Copy | J48: The solver result in range C6:M6 are copied
B50: Range("B" & Rows.Count).End(xlUp).Offset(0, 1).PasteSpecial xlPasteAll | J50: Pasting the values are to the first row in the B column with an offset(0, 1) which means that the values are copied to the C column.
B52: Range("C8").PasteSpecial Paste:=xlPasteAll, Operation:=xlSubtract | J52: Finally the value are copied to cell C8 and the values are subtracted from the previous values in range C8:M8
B54: Range("C6:M6").ClearContents | J54: The range C6:M6 with result from the solver run is cleared
B56: Application.CutCopyMode = False | J56: This will stop the "marching ants" from the range macro copied from.
B58: i = i + 1 | J58: The i value are increased with 1 unit.
B60: Loop | J60: This command makes the macro jump back to the "Do until Range("$O$8") = 0" line
B62: Range("B" & i + 18) = "Total" | J62: Setting text to cell. As the first value is written to row 18 and i starts at 1 and increases with 1 for every loop made the sum of i + 18 will be the final row where "Total" shall be written.
B64: Range("C" & i + 18).Formula = "=Sum(C18:C" & i + 16 & ")" | J64: Building a sum formula in cell
B66: Range("C" & i + 18).Copy | J66: Copy formula
B68: Range("D" & i + 18 & ":M" & i + 18).PasteSpecial xlPasteFormulas | J68: and pasting it to a range
B70: Range("O" & i + 18).PasteSpecial xlPasteFormulas | J70: and a cell in the O column
B72: Range("O18:O" & i + 18).HorizontalAlignment = xlCenter | J72: Centering values in O column
B74: Range("N" & i + 18) = " Total wastage" | J74: Adding more text
B76: Range("C" & i + 18 & ":M" & i + 18).HorizontalAlignment = xlCenter | J76: Centering values in C to M column
B78: Application.CutCopyMode = False | J78: Stop the "marching ants" from the range macro copied from.
B80: Range("B18:B" & Range("B" & Rows.Count).End(xlUp).Row).Font.Bold = True | J80: Setting B column to Bold
B82: Range("C" & i + 18 & ":P" & i + 18).Font.Bold = True | J82: Setting range C:P columns to Bold
B84: Application.ScreenUpdating = True | J84: Unlock screen
B86: End Sub | J86: End of macro
